bitfinex/quotes_SOLUSD_20240917
["timestamp","ask_amount","ask_price","bid_price","bid_amount"]
[1726583316920,7.4102,134.95,134.89,7.4133]
[1726583317214,7.4102,134.95,134.88,25.9476]
[1726583317422,7.4111,134.94,134.88,18.5337]
[1726583317810,7.4111,134.94,134.88,25.9476]
[1726583318005,7.4111,134.94,134.88,18.5337]
[1726583318437,7.4111,134.94,134.88,25.9476]
[1726583318636,7.4111,134.94,134.74,50.0]
[1726583318637,16.3957,134.93,134.78,25.08329993]
[1726583318937,16.3957,134.93,134.6,8.90579526]
[1726583318938,0.59938,134.73,134.6,8.90579526]
[1726583319149,0.59938,134.73,134.53,0.1339464]
[1726583319150,10.0,134.56,134.53,0.1339464]
[1726583319368,18.5768,134.58,134.47,0.388724]
[1726583319369,10.0,134.58,134.47,0.388724]
[1726583319510,379.62096869,134.69,134.47,0.388724]
[1726583319511,10.0,134.53,134.47,0.359935]
[1726583319711,10.0,134.49,134.47,0.359935]
[1726583320205,10.0,134.52,134.47,0.359935]
[1726583320523,10.0,134.5,134.46,7.4368]
[1726583320836,10.0,134.5,134.44,24.893335]
[1726583321008,31.05693276,134.49,134.38,44.48941937]
[1726583321209,10.0,134.45,134.42,18.5977]
[1726583321414,10.0,134.43,134.42,18.5977]
[1726583321838,14.91569438,134.43,134.42,26.037]
[1726583322012,10.0,134.46,134.43,7.4383]
[1726583322212,10.0,134.44,134.42,91.24157804]
[1726583322534,24.2284417,134.43,134.42,18.5977]
[1726583322918,10.0,134.41,134.39,7.9625245]
[1726583323141,9.31515873,134.4,134.39,0.5219245]
[1726583323908,10.0,134.48,134.39,73.16580254]
[1726583324222,1.74228416,134.47,134.46,7.4369]
[1726583324542,10.0,134.46,134.45,18.5942]
[1726583325712,10.25098,134.46,134.45,18.5942]
[1726583325918,10.0,134.46,134.45,18.5942]
[1726583326339,10.0,134.48,134.47,7.4366]
[1726583326714,10.0,134.5,134.49,26.0241]
[1726583326916,37.1345,134.65,134.41,72.64387804]
[1726583326917,10.0,134.45,134.41,72.64387804]
[1726583327134,10.0,134.45,134.39,73.16580254]
[1726583327318,10.0,134.45,134.44,7.4382]
[1726583327840,10.0,134.41,134.4,7.44]
[1726583328633,10.0,134.41,134.39,7.9628245]
[1726583329019,3.87289985,134.76,134.43,26.0358]
[1726583329020,10.0,134.44,134.43,26.0358]
[1726583329342,10.0,134.46,134.43,18.597]
[1726583329545,10.0,134.48,134.43,18.597]
[1726583329722,10.0,134.48,134.47,7.4366]
[1726583330044,50.0,134.57,134.49,7.4354]
[1726583330045,10.0,134.5,134.49,7.4354]
[1726583330239,10.0,134.5,134.46,18.5917]
[1726583330423,10.0,134.44,134.42,18.5982]
[1726583330831,10.0,134.44,134.43,7.4388]
[1726583331033,10.0,134.46,134.44,7.4379]
[1726583331646,10.0,134.43,134.42,18.5982]
[1726583331818,10.0,134.43,134.42,26.0375]
[1726583332140,10.0,134.43,134.42,18.5982]
[1726583332524,10.0,134.41,134.39,7.9625245]
[1726583332945,10.0,134.43,134.41,7.4396]
[1726583333618,10.0,134.43,134.41,26.0389]
[1726583333941,10.0,134.43,134.41,18.5993]
[1726583334846,10.0,134.43,134.41,26.0386]
[1726583335426,10.0,134.43,134.41,18.5993]
[1726583335924,10.0,134.43,134.41,26.0392]
[1726583336144,10.0,134.4,134.39,7.9625245]
[1726583336319,10.0,134.4,134.39,0.5219245]
[1726583336521,10.25098,134.4,134.39,0.5219245]
[1726583336720,65.77014816,134.4,134.39,0.5219245]
[1726583337445,65.77014816,134.4,134.33,18.6099]
[1726583337446,10.0,134.34,134.33,26.054]
[1726583338249,10.0,134.32,134.31,0.5219245]
[1726583338925,10.25098,134.32,134.31,0.5219245]
[1726583339128,35.77014816,134.32,134.31,0.5219245]
[1726583339546,65.77014816,134.32,134.31,0.5219245]
[1726583339721,73.21504816,134.32,134.31,0.5219245]
[1726583340144,10.0,134.24,134.23,0.5219245]
[1726583340928,10.12549,134.24,134.23,0.5219245]
[1726583341245,17.57479,134.24,134.23,0.5219245]
[1726583341448,17.57479,134.24,134.15,19.1565245]
[1726583341449,7.4518,134.2,134.15,0.5219245]
[1726583341755,10.0,134.16,134.15,7.9762245]
[1726583341940,10.0,134.16,134.15,0.5219245]
[1726583342245,10.25098,134.16,134.15,0.5219245]
[1726583342659,10.0,134.16,134.15,0.5219245]
[1726583343850,10.12549,134.16,134.15,0.5219245]
[1726583344335,34.027864,134.16,134.15,0.5219245]
[1726583345030,65.77014816,134.16,134.15,0.5219245]
[1726583345525,85.77014816,134.16,134.15,0.5219245]
[1726583345947,84.027864,134.16,134.15,0.5219245]
[1726583347730,83.776884,134.16,134.15,0.5219245]
[1726583347946,91.230584,134.16,134.15,0.5219245]
[1726583348141,91.230584,134.16,134.15,0.2711245]
[1726583348440,92.97286816,134.16,134.15,0.2711245]
[1726583348645,85.51916816,134.16,134.15,0.2711245]
[1726583348853,40.0,134.16,134.15,0.2711245]
[1726583349829,40.0,134.16,134.15,7.7254245]
[1726583350038,10.0,134.16,134.15,0.2711245]
[1726583350551,11.74228416,134.16,134.15,0.2711245]
[1726583350749,10.0,134.16,134.15,0.2711245]
[1726583350948,40.0,134.16,134.15,0.2711245]
[1726583351151,10.0,134.18,134.17,7.4532]
[1726583351355,10.0,134.21,134.18,18.6314]
[1726583351531,10.0,134.31,134.18,18.6314]
[1726583351532,10.0,134.23,134.2,7.4515]
[1726583351736,1.74228416,134.22,134.21,18.6273]
[1726583351957,10.0,134.23,134.18,18.6316]
[1726583352256,10.0,134.23,134.22,7.4504]
[1726583352447,10.0,134.25,134.24,7.4493]
[1726583352631,10.0,134.28,134.24,18.6233]
[1726583352836,10.0,134.3,134.27,18.6178]
[1726583353362,10.0,134.3,134.29,7.4465]
[1726583353672,10.0,134.3,134.28,7.447]
[1726583354269,10.0,134.33,134.31,7.4454]
[1726583354453,10.0,134.33,134.32,7.4449]
[1726583354659,10.0,134.35,134.33,7.4441]
[1726583354835,30.0,134.34,134.33,7.4441]
[1726583355032,10.0,134.37,134.34,26.0531]
[1726583355235,10.0,134.33,134.3,26.0595]
[1726583355461,10.0,134.33,134.31,7.4451]
[1726583355643,10.0,134.35,134.32,7.4449]
[1726583355850,10.2508,134.35,134.31,7.4449]
[1726583356045,11.99308416,134.35,134.3,18.6141]
[1726583356252,10.0,134.3,134.26,26.067]
[1726583356433,10.0,134.3,134.19,59.7867]
[1726583356434,10.0,134.32,134.3,7.4459]
[1726583356638,10.2508,134.35,134.31,7.4451]
[1726583356839,10.2508,134.35,134.32,7.4447]
[1726583357059,10.2508,134.35,134.3,7.4454]
[1726583357365,10.0,134.33,134.3,7.446]
[1726583357952,10.0,134.33,134.29,18.6161]
[1726583358261,10.0,134.31,134.25,18.6206]
[1726583358456,10.0,134.31,134.3,7.446]
[1726583358639,10.0,134.31,134.28,18.6171]
[1726583358640,10.0,134.33,134.29,7.4465]
[1726583358841,10.2508,134.35,134.28,18.6171]
[1726583359366,10.2508,134.35,134.32,7.4448]
[1726583359561,0.2508,134.35,134.34,26.0531]
[1726583359939,0.2508,134.35,134.32,21.5347]
[1726583360262,0.5219245,134.43,134.32,21.5347]
[1726583360263,10.0,134.41,134.33,72.64387804]
[1726583360480,10.0,134.39,134.32,21.5347]
[1726583360760,10.0,134.35,134.33,18.6107]
[1726583360940,10.0,134.35,134.33,26.055]
[1726583361140,10.0,134.35,134.32,21.5347]
[1726583361736,10.0,134.35,134.32,28.9795]
[1726583361958,10.0,134.35,134.32,21.5347]
[1726583362260,1.74228416,134.34,134.32,21.5347]
[1726583362461,10.0,134.33,134.3,18.6149]
[1726583362666,10.0,134.33,134.26,6.152]
[1726583362854,57.438,134.4,134.28,7.447]
[1726583362855,10.0,134.31,134.28,7.447]
[1726583363164,10.0,134.31,134.27,18.6187]
[1726583363486,10.0,134.31,134.29,7.4464]
[1726583363774,10.0,134.34,134.3,7.4455]
[1726583363942,10.0,134.34,134.31,7.4453]
[1726583364143,10.0,134.36,134.32,7.4444]
[1726583364644,10.0,134.34,134.31,18.6126]
[1726583365064,10.0,134.36,134.34,7.4436]
[1726583365266,10.0,134.36,134.31,18.6126]
[1726583365571,10.0,134.36,134.34,7.4433]
[1726583365770,10.0,134.38,134.35,7.4432]
[1726583365968,0.5219245,134.43,134.35,7.4432]
[1726583365969,10.0,134.4,134.37,7.4421]
[1726583366273,10.0,134.4,134.36,7.4425]
[1726583366648,10.0,134.38,134.35,26.0495]
[1726583366851,10.0,134.4,134.33,72.64387804]
[1726583367053,10.0,134.4,134.39,7.441]
[1726583367259,10.0,134.4,134.35,18.6078]
[1726583367447,10.0,134.4,134.37,18.6045]
[1726583367649,10.0,134.4,134.37,26.0464]
[1726583368286,10.0,134.4,134.37,18.6045]
[1726583368770,10.0,134.42,134.38,16.5332]
[1726583368972,10.0,134.42,134.41,7.4399]
[1726583369269,10.0,134.42,134.4,26.0414]
[1726583369474,10.0,134.39,134.31,43.2679]
[1726583369768,10.0,134.42,134.38,7.4415]
[1726583369974,10.0,134.42,134.35,37.2159]
[1726583370376,10.0,134.42,134.4,7.4404]
[1726583370850,10.0,134.42,134.41,7.4399]
[1726583371356,10.0,134.42,134.4,26.0403]
[1726583371560,10.0,134.42,134.36,18.6063]
[1726583371869,10.0,134.4,134.37,7.442]
[1726583372276,10.0,134.4,134.38,7.4415]
[1726583372749,10.0,134.42,134.35,37.2148]
[1726583372946,10.0,134.42,134.41,18.5998]
[1726583373176,10.0,134.42,134.41,26.0397]
[1726583373672,10.0,134.42,134.39,7.4408]
[1726583373850,10.0,134.4,134.38,18.6036]
[1726583374050,10.0,134.42,134.38,18.6036]
[1726583374274,10.0,134.42,134.31,43.2679]
[1726583374580,10.0,134.41,134.35,18.6074]
[1726583374746,10.0,134.41,134.38,7.4411]
[1726583374948,10.0,134.41,134.39,7.4409]
[1726583375148,10.0,134.41,134.39,18.6019]
[1726583375552,10.5219245,134.43,134.39,18.6019]
[1726583375771,10.5219245,134.43,134.4,7.44]
[1726583376475,10.5219245,134.43,134.35,18.6071]
[1726583376476,10.0,134.4,134.35,18.6071]
[1726583377178,0.5219245,134.43,134.32,18.6115]
[1726583377179,10.0,134.37,134.32,18.6115]
[1726583377476,10.0,134.39,134.35,7.4428]
[1726583377775,10.0,134.41,134.34,18.57877]
[1726583377982,10.0,134.39,134.36,18.6059]
[1726583378149,10.0,134.39,134.36,26.0484]
[1726583378354,10.0,134.39,134.36,18.6059]
[1726583378576,10.0,134.39,134.36,26.0484]
[1726583378792,0.5219245,134.43,134.37,72.64387804]
[1726583379078,10.0,134.5,134.42,79.14627804]
[1726583379281,10.0,134.52,134.48,72.64387804]
[1726583379584,10.0,134.52,134.49,1.48623284]
[1726583379798,10.0,134.52,134.5,72.64387804]
[1726583380085,10.0,134.54,134.5,80.07877804]
[1726583380657,10.0,134.57,134.52,18.5838]
[1726583380855,0.5219245,134.59,134.56,7.4316]
[1726583380856,10.5219245,134.59,134.56,7.4316]
[1726583381155,0.5219245,134.59,134.57,72.64387804]
[1726583381355,10.5219245,134.59,134.55,91.22367804]
[1726583381557,0.5219245,134.59,134.57,7.4309]
[1726583382062,0.5219245,134.59,134.57,80.07477804]
[1726583382868,10.0,134.65,134.59,18.5736]
[1726583383186,10.0,134.65,134.61,72.64387804]
[1726583383367,10.0,134.57,134.5,18.5865]
[1726583383551,10.0,134.58,134.53,7.4331]
[1726583383754,10.0,134.58,134.5,91.23037804]
[1726583383979,10.0,134.56,134.5,18.5865]
[1726583384178,10.0,134.56,134.51,7.4342]
[1726583384352,10.0,134.56,134.5,18.5865]
[1726583384782,10.0,134.56,134.52,7.4332]
[1726583385194,10.0,134.56,134.5,26.0209]
[1726583385366,10.0,134.56,134.5,26.0214]
[1726583385687,10.0,134.56,134.5,18.5865]
[1726583385892,10.0,134.58,134.5,18.5865]
[1726583386093,10.0,134.58,134.55,7.4321]
[1726583386269,10.0,134.6,134.56,7.4315]
[1726583386461,10.0,134.58,134.53,18.5825]
[1726583386667,10.0,134.56,134.49,34.8414]
[1726583386970,10.0,134.56,134.51,7.4343]
[1726583387883,10.0,134.56,134.53,7.4332]
[1726583388094,10.0,134.58,134.55,7.4321]
[1726583388295,10.0,134.58,134.54,26.0139]
[1726583388590,10.0,134.58,134.54,18.5817]
[1726583388987,10.0,134.58,134.55,7.4316]
[1726583389487,10.0,134.6,134.55,7.4316]
[1726583389785,10.0,134.58,134.54,26.0144]
[1726583389980,10.0,134.6,134.55,7.4319]
[1726583390176,10.0,134.58,134.54,18.5817]
[1726583390367,10.0,134.58,134.54,7.4324]
[1726583390566,10.0,134.6,134.55,7.4319]
[1726583390769,10.0,134.58,134.55,7.4319]
[1726583390970,10.0,134.6,134.55,7.4319]
[1726583391373,10.0,134.6,134.55,18.5797]
[1726583391674,10.0,134.6,134.55,72.64387804]
[1726583391869,10.0,134.59,134.54,7.4325]
[1726583392183,10.0,134.59,134.54,7.4326]
[1726583392698,10.0,134.59,134.48,6.4175]
[1726583392699,10.0,134.56,134.48,6.4175]
[1726583393382,10.0,134.56,134.5,7.4349]
[1726583393585,10.0,134.56,134.48,32.4428]
[1726583393892,10.0,134.53,134.48,25.0069]
[1726583394194,10.0,134.5,134.47,15.5167]
[1726583394388,10.0,134.5,134.46,7.4369]
[1726583394591,10.0,134.5,134.45,26.0313]
[1726583395474,10.0,134.5,134.44,7.4381]
[1726583395969,10.0,134.48,134.42,25.2239]
[1726583396175,10.0,134.48,134.43,7.4385]
[1726583398592,10.0,134.48,134.44,7.438]
[1726583398801,10.0,134.43,134.39,7.9626245]
[1726583398974,20.25098,134.47,134.39,7.9626245]
[1726583398975,10.0,134.4,134.39,0.5219245]
[1726583399394,10.0,134.42,134.39,0.5219245]
[1726583400711,10.0,134.5,134.41,72.64387804]
[1726583400874,10.0,134.52,134.48,18.5892]
[1726583401069,10.0,134.54,134.48,18.5892]
[1726583401304,10.0,134.56,134.52,72.64387804]
[1726583401483,10.0,134.56,134.53,8.91924651]
[1726583401683,10.0,134.54,134.47,72.64387804]
[1726583401896,10.0,134.52,134.48,7.436]
[1726583402099,10.0,134.52,134.46,18.5915]
[1726583402298,10.0,134.52,134.46,26.0281]
[1726583402474,10.0,134.5,134.43,91.24047804]
[1726583402677,10.0,134.55,134.44,0.25098]
[1726583402880,10.0,134.55,134.51,7.4339]
[1726583403406,10.0,134.57,134.51,72.64387804]
[1726583403703,10.0,134.57,134.54,7.4326]
[1726583403898,10.0,134.59,134.54,7.4326]
[1726583404202,10.0,134.59,134.53,18.582]
[1726583404203,10.0,134.55,134.51,7.434]
[1726583404383,10.0,134.57,134.51,7.4341]
[1726583404703,10.0,134.57,134.5,18.5869]
[1726583404911,10.0,134.5,134.45,22.2401]
[1726583405111,23.03985303,134.63,134.45,22.2401]
[1726583405112,10.0,134.48,134.45,22.2401]
[1726583405281,10.0,134.46,134.42,7.4389]
[1726583405482,10.0,134.46,134.42,7.4391]
[1726583405709,10.0,134.47,134.44,7.4381]
[1726583406006,7.4349,134.51,134.39,22.7620245]
[1726583406007,10.0,134.49,134.45,7.4375]
[1726583406306,10.0,134.49,134.44,7.4381]
[1726583406507,10.0,134.49,134.43,18.5957]
[1726583406799,10.0,134.51,134.47,7.4365]
[1726583406973,7.4332,134.54,134.42,109.83927804]
[1726583406974,10.0,134.49,134.42,37.1954]
[1726583407177,10.0,134.49,134.45,7.4375]
[1726583407596,10.0,134.51,134.47,7.4361]
[1726583407793,10.0,134.53,134.48,7.4355]
[1726583407990,10.0,134.53,134.5,7.4344]
[1726583408398,10.0,134.53,134.49,26.0229]
[1726583408713,10.0,134.53,134.48,7.4359]
[1726583408909,10.0,134.53,134.5,7.4348]
[1726583409208,10.0,134.51,134.44,72.64387804]
[1726583409397,10.0,134.51,134.47,7.4365]
[1726583409599,10.0,134.51,134.45,7.4376]
[1726583409782,10.0,134.49,134.45,7.4376]
[1726583409982,10.0,134.49,134.43,18.5965]
[1726583410297,10.0,134.47,134.43,18.5965]
[1726583410481,10.0,134.47,134.39,0.5219245]
[1726583410681,10.0,134.41,134.39,0.5219245]
[1726583411227,17.44,134.41,134.39,0.5219245]
[1726583411381,10.0,134.41,134.39,0.5219245]
[1726583411581,10.0,134.43,134.39,0.5219245]
[1726583411779,10.0,134.45,134.4,7.4403]
[1726583412006,10.0,134.43,134.4,7.4403]
[1726583412312,10.0,134.43,134.39,7.9628245]
[1726583413111,10.0,134.41,134.39,0.5219245]
[1726583413408,17.44,134.41,134.39,0.5219245]
[1726583413577,29.18268416,134.4,134.39,0.5219245]
[1726583415306,10.0,134.41,134.39,0.5219245]
[1726583415885,10.0,134.36,134.31,0.5219245]
[1726583416088,10.0,134.36,134.33,7.4441]
[1726583416593,10.0,134.34,134.31,26.5799245]
[1726583416793,10.0,134.34,134.31,0.5219245]
[1726583417108,50.0,134.44,134.31,0.5219245]
[1726583417109,10.0,134.32,134.31,0.5219245]
[1726583417298,17.4449,134.32,134.31,0.5219245]
[1726583418416,10.0,134.24,134.23,0.5219245]
[1726583418592,30.0,134.24,134.23,0.5219245]
[1726583418786,61.477164,134.24,134.23,0.5219245]
[1726583419102,10.0,134.24,134.23,0.5219245]
[1726583419484,17.4493,134.24,134.23,0.5219245]
[1726583419692,30.12549,134.24,134.23,0.5219245]
[1726583419885,30.0,134.24,134.23,0.5219245]
[1726583420087,37.4493,134.24,134.23,0.5219245]
[1726583420286,61.477164,134.24,134.23,0.5219245]
[1726583420510,10.0,134.18,134.15,0.5219245]
[1726583421014,17.4529,134.18,134.15,0.5219245]
[1726583421315,10.0,134.18,134.15,0.5219245]
[1726583421880,10.0,134.16,134.15,0.5219245]
[1726583422113,10.0,134.18,134.15,0.5219245]
[1726583422490,10.0,134.18,134.15,2.01048968]
[1726583422690,10.0,134.18,134.15,7.9762245]
[1726583422901,10.0,134.18,134.15,0.5219245]
[1726583424322,10.0,134.16,134.15,0.5219245]
[1726583424499,10.0,134.18,134.15,0.5219245]
[1726583424684,10.0,134.21,134.15,0.5219245]
[1726583424892,10.0,134.23,134.18,7.4526]
[1726583425115,10.0,134.23,134.19,1.48887188]
[1726583425289,10.0,134.27,134.19,1.48887188]
[1726583425493,10.0,134.25,134.19,1.48887188]
[1726583425693,10.0,134.3,134.27,7.4476]
[1726583425888,10.0,134.3,134.26,18.6196]
[1726583426095,10.0,134.3,134.26,26.0677]
[1726583426326,10.0,134.3,134.21,15.98009]
[1726583426327,10.0,134.3,134.23,18.6242]
[1726583426613,10.0,134.28,134.25,18.6206]
[1726583426918,10.0,134.3,134.25,18.6206]
[1726583427103,10.0,134.28,134.25,18.6206]
[1726583427313,10.0,134.3,134.25,26.0692]
[1726583427604,10.0,134.33,134.27,18.6182]
[1726583427824,10.0,134.35,134.31,7.4451]
[1726583427991,10.0,134.35,134.32,7.4446]
[1726583428642,10.0,134.37,134.3,72.64387804]
[1726583428926,10.0,134.37,134.33,18.6097]
[1726583429418,10.0,134.39,134.33,18.6097]
[1726583429791,10.0,134.39,134.35,18.6068]
[1726583430001,10.0,134.37,134.35,26.0499]
[1726583430206,10.0,134.34,134.32,26.0567]
[1726583430501,10.0,134.34,134.32,18.6118]
[1726583430840,10.0,134.34,134.31,7.445]
[1726583431016,10.0,134.31,134.29,18.6159]
[1726583431835,10.0,134.31,134.29,26.0623]
[1726583432214,10.0,134.31,134.29,18.6159]
[1726583432539,10.0,134.29,134.2,6.6363]
[1726583432715,10.0,134.29,134.25,18.6211]
[1726583432910,10.0,134.29,134.25,26.0697]
[1726583433114,10.0,134.29,134.26,7.448]
[1726583433914,50.0,134.39,134.22,37.2519]
[1726583433915,10.0,134.31,134.27,18.6181]
[1726583434333,10.0,134.31,134.27,26.0654]
[1726583434532,10.0,134.29,134.27,26.0654]
[1726583434722,10.0,134.29,134.28,7.4471]
[1726583434918,10.0,134.33,134.29,18.6153]
[1726583435138,10.0,134.35,134.33,7.4442]
[1726583436141,10.0,134.35,134.29,18.6159]
[1726583436320,10.0,134.33,134.3,7.4454]
[1726583436508,10.0,134.31,134.29,18.6159]
[1726583437211,10.0,134.31,134.29,26.0623]
[1726583437414,10.0,134.31,134.29,18.6159]
[1726583437940,10.0,134.31,134.29,26.0619]
[1726583438233,10.0,134.31,134.27,7.4471]
[1726583438439,10.0,134.31,134.29,7.4463]
[1726583438939,10.0,134.31,134.28,26.0639]
[1726583439435,10.0,134.33,134.3,18.614]
[1726583439628,18.6011,134.4,134.3,18.614]
[1726583439629,10.0,134.31,134.3,18.614]
[1726583439829,10.5219245,134.43,134.3,18.614]
[1726583439830,10.0,134.35,134.3,18.614]
[1726583440036,10.0,134.35,134.32,7.4444]
[1726583440209,10.0,134.35,134.32,18.6114]
[1726583440414,10.0,134.37,134.34,18.6087]
[1726583440615,10.0,134.37,134.26,109.88487804]
[1726583440616,10.0,134.33,134.31,18.6128]
[1726583441247,17.4478,134.27,134.2,14.0875]
[1726583441541,10.0,134.27,134.24,7.4492]
[1726583441916,10.0,134.24,134.2,14.0873]
[1726583442134,18.6118,134.33,134.2,14.0873]
[1726583442135,10.0,134.23,134.2,14.0878]
[1726583442318,10.0,134.23,134.22,7.4504]
[1726583442817,10.0,134.23,134.2,14.0873]
[1726583443117,10.0,134.21,134.19,26.0821]
[1726583443332,10.0,134.17,134.15,0.5219245]
[1726583443541,10.0,134.19,134.15,0.5219245]
[1726583443721,10.0,134.19,134.18,7.4526]
[1726583444621,10.0,134.19,134.17,26.0848]
[1726583444826,10.0,134.21,134.18,7.4526]
[1726583445033,10.0,134.19,134.18,7.4526]
[1726583446128,10.0,134.19,134.15,7.9757245]
[1726583446333,10.0,134.19,134.15,0.5219245]
[1726583446635,10.0,134.16,134.15,0.5219245]
[1726583447458,10.0,134.18,134.15,0.5219245]
[1726583447659,10.0,134.18,134.16,7.4535]
[1726583448349,10.0,134.18,134.17,7.4532]
[1726583449358,10.0,134.18,134.16,26.087]
[1726583449563,10.0,134.18,134.16,18.6333]
[1726583450229,10.0,134.18,134.17,7.4532]
[1726583451029,10.0,134.18,134.16,26.0869]
[1726583451333,10.0,134.18,134.16,18.6333]
[1726583452239,10.0,134.18,134.16,26.087]
[1726583452854,10.0,134.18,134.17,7.4532]
[1726583454266,10.0,134.23,134.17,109.90987804]
[1726583454445,10.0,134.23,134.21,26.0784]
[1726583454642,10.0,134.2,134.16,6.0024]
[1726583454841,10.0,134.2,134.19,7.4521]
[1726583455274,10.0,134.22,134.18,18.6308]
[1726583455475,10.0,134.22,134.21,26.0785]
[1726583455975,10.0,134.22,134.19,7.4516]
[1726583456265,10.0,134.18,134.17,18.6319]
[1726583456465,10.0,134.18,134.17,26.0851]
[1726583456650,10.0,134.18,134.17,18.6319]
[1726583456843,10.0,134.18,134.16,6.0024]
[1726583457151,10.0,134.18,134.16,13.456]
[1726583457351,10.0,134.16,134.15,0.5219245]
[1726583457653,37.57919,134.16,134.15,0.5219245]
[1726583457852,61.356074,134.16,134.15,0.5219245]
[1726583458045,61.481564,134.16,134.15,0.5219245]
[1726583458444,10.0,134.09,134.07,0.5219245]
[1726583458865,10.0,134.09,134.08,7.8743541]
[1726583459072,10.0,134.09,134.08,0.4161541]
[1726583460573,10.0,134.09,134.08,7.8743541]
[1726583460747,10.0,134.09,134.08,0.4161541]
[1726583461356,10.25098,134.09,134.08,0.4161541]
[1726583461564,41.485464,134.09,134.08,0.4161541]
[1726583461754,61.485464,134.09,134.08,0.4161541]
[1726583462344,7.4582,134.08,134.07,0.5219245]
[1726583462671,53.22834816,134.08,134.07,0.5219245]
[1726583462970,53.22834816,134.08,133.99,0.5219245]
[1726583462971,30.0,134.0,133.99,0.5219245]
[1726583463174,10.0,134.0,133.99,0.5219245]
[1726583463846,30.0,134.0,133.99,0.5219245]
[1726583464371,30.0,134.0,133.99,7.9851245]
[1726583464372,10.0,134.0,133.99,7.9851245]
[1726583464846,10.0,134.0,133.99,0.5219245]
[1726583465045,10.0,134.0,133.99,7.9851245]
[1726583465567,10.0,134.0,133.99,0.5219245]
[1726583469558,30.0,134.0,133.99,0.5219245]
[1726583470165,10.0,134.0,133.99,7.4851245]
[1726583470356,10.0,134.02,134.01,7.4621]
[1726583470561,10.0,134.0,133.99,0.0219245]
[1726583470765,10.0,134.02,134.01,26.1174]
[1726583471150,10.0,134.05,134.04,7.4604]
[1726583471779,10.0,134.05,134.03,18.6523]
[1726583471780,10.0,134.08,134.07,7.4587]
[1726583472079,10.0,134.1,134.09,18.6441]
[1726583472272,10.0,134.1,134.05,6.4387]
[1726583472467,10.0,134.1,134.09,7.4576]
[1726583472850,10.0,134.12,134.11,26.0979]
[1726583473065,10.0,134.1,134.08,7.4582]
[1726583473875,7.438,134.23,134.11,7.4565]
[1726583473876,10.0,134.12,134.11,7.4565]
[1726583474450,10.0,134.14,134.13,26.094]
[1726583474854,10.0,134.16,134.15,7.4543]
[1726583475051,10.0,134.12,134.1,18.6426]
[1726583475550,10.0,134.12,134.11,7.456]
[1726583475775,10.0,134.15,134.14,7.4548]
[1726583476152,10.0,134.15,134.13,18.6374]
[1726583476371,10.0,134.14,134.09,72.64387804]
[1726583476563,10.0,134.16,134.14,7.4548]
[1726583476751,37.8448,134.25,134.12,26.0949]
[1726583476752,10.0,134.14,134.12,26.0949]
[1726583476959,10.0,134.14,134.13,7.4554]
[1726583477578,10.0,134.16,134.14,7.4544]
[1726583478077,10.0,134.16,134.12,18.6395]